bitfinex-derivatives/quotes_BTCF0:USTF0_20250309
["timestamp","ask_amount","ask_price","bid_price","bid_amount"]
[1741524447360,0.1938627,84716.0,84715.0,0.12549679]
[1741524448058,0.1938627,84716.0,84715.0,0.24356079]
[1741524448254,0.2740227,84716.0,84715.0,0.24356079]
[1741524449048,0.0758,84716.0,84715.0,0.24356079]
[1741524449250,0.00017707,84718.0,84717.0,0.1180613]
[1741524450157,0.3616,84752.0,84730.0,0.1180431]
[1741524450468,0.14048741,84731.0,84730.0,0.4788431]
[1741524450665,0.14048741,84731.0,84730.0,0.6288431]
[1741524450959,0.25852921,84731.0,84730.0,0.5531431]
[1741524453164,0.1180418,84731.0,84730.0,0.5531431]
[1741524454969,0.1180418,84731.0,84730.0,0.1923431]
[1741524458069,0.0590188,84734.0,84730.0,0.0743]
[1741524458267,0.0590167,84738.0,84737.0,0.1180334]
[1741524458775,0.0763,84742.0,84737.0,0.1180334]
[1741524458979,0.189,84766.0,84738.0,0.192932]
[1741524459271,0.1180185,84748.0,84738.0,0.192932]
[1741524459477,0.15482,84750.0,84738.0,0.192932]
[1741524459678,0.11820767,84739.0,84738.0,0.192932]
[1741524460569,0.15430767,84739.0,84738.0,0.192932]
[1741524462768,0.11820767,84739.0,84738.0,0.192932]
[1741524462968,0.00017707,84739.0,84738.0,0.192932]
[1741524465280,0.198077,84764.0,84739.0,0.5901527]
[1741524465486,0.1179881,84770.0,84769.0,0.1179874]
[1741524465782,0.1562881,84770.0,84769.0,0.1179874]
[1741524465979,0.1931881,84770.0,84769.0,0.1179874]
[1741524467284,0.0752,84770.0,84767.0,0.0118409]
[1741524467479,0.1179902,84768.0,84767.0,0.1179908]
[1741524467986,0.1179902,84768.0,84767.0,0.01189154]
[1741524468180,0.1179902,84768.0,84761.0,0.09857665]
[1741524468381,0.1769971,84764.0,84761.0,0.21657055]
[1741524468693,0.1179986,84762.0,84761.0,0.21657055]
[1741524469287,0.1932986,84762.0,84761.0,0.21657055]
[1741524469487,0.1932986,84762.0,84761.0,0.2280893]
[1741524469694,0.1932986,84762.0,84761.0,0.23691109]
[1741524470485,0.1932986,84762.0,84761.0,0.11891719]
[1741524470984,0.1932986,84762.0,84761.0,0.05991749]
[1741524471282,0.1932986,84762.0,84761.0,0.17791749]
[1741524473578,0.1932986,84762.0,84761.0,0.02051749]
[1741524474282,0.1932986,84762.0,84761.0,0.13851749]
[1741524476381,0.1932986,84762.0,84761.0,0.02051749]
[1741524476584,0.1932986,84762.0,84761.0,0.13851749]
[1741524476790,0.1932986,84762.0,84761.0,0.17451749]
[1741524480388,0.0753,84762.0,84761.0,0.17451749]
[1741524480580,0.1179921,84767.0,84766.0,0.176986]
[1741524480781,0.1179921,84767.0,84766.0,0.251386]
[1741524481994,0.1179921,84767.0,84766.0,0.0744]
[1741524482293,0.1179986,84762.0,84761.0,0.00899874]
[1741524482590,0.1980386,84762.0,84761.0,0.00899874]
[1741524484095,0.5588386,84762.0,84761.0,0.00017695]
[1741524484387,0.6329386,84762.0,84761.0,0.00017695]
[1741524485586,0.2721386,84762.0,84761.0,0.00017695]
[1741524485978,0.6329386,84762.0,84761.0,0.00017695]
[1741524490693,0.6329386,84762.0,84761.0,0.07207695]
[1741524491083,0.6329386,84762.0,84761.0,0.03677695]
[1741524491887,0.5528986,84762.0,84761.0,0.03677695]
[1741524492086,0.6329386,84762.0,84761.0,0.03677695]
[1741524492486,0.6329386,84762.0,84761.0,0.15477695]
[1741524493392,0.6329386,84762.0,84761.0,0.04858557]
[1741524493799,0.2721386,84762.0,84761.0,0.04858557]
[1741524493993,0.2721386,84762.0,84761.0,0.08438557]
[1741524494694,0.2721386,84762.0,84761.0,0.07257695]
[1741524495288,0.1541986,84762.0,84761.0,0.07257695]
[1741524495591,0.2341986,84762.0,84761.0,0.20229963]
[1741524495798,0.1541986,84762.0,84761.0,0.20229963]
[1741524497197,0.1541986,84762.0,84761.0,0.07257695]
[1741524497502,0.5149986,84762.0,84761.0,0.00017695]
[1741524498502,0.5149986,84762.0,84761.0,0.11817695]
[1741524498702,0.1541986,84762.0,84761.0,0.11817695]
[1741524499191,0.1541986,84762.0,84761.0,0.19377695]
[1741524501992,0.1541986,84762.0,84761.0,0.07577695]
[1741524502692,0.1541986,84762.0,84761.0,0.03907695]
[1741524503803,0.1541986,84762.0,84761.0,0.15707695]
[1741524504604,0.1541986,84762.0,84761.0,0.19587695]
[1741524505602,0.1541986,84762.0,84761.0,0.07787695]
[1741524506196,0.1541986,84762.0,84761.0,0.19587695]
[1741524506807,0.1541986,84762.0,84761.0,0.07787695]
[1741524508106,0.1541986,84762.0,84761.0,0.03907695]
[1741524511097,0.1179986,84762.0,84761.0,0.15707695]
[1741524511398,0.0589985,84764.0,84763.0,0.1179972]
[1741524512504,0.23504192,84768.0,84761.0,0.07677695]
[1741524512702,0.1179986,84763.0,84762.0,0.0589989]
[1741524512903,0.1179986,84763.0,84762.0,0.1316989]
[1741524513102,0.1179986,84763.0,84762.0,0.1906986]
[1741524513408,0.29404302,84763.0,84762.0,0.1906986]
[1741524513608,0.29404302,84763.0,84762.0,0.0727]
[1741524514602,0.33144302,84763.0,84762.0,0.0727]
[1741524515206,0.36974302,84763.0,84762.0,0.0727]
[1741524515814,0.36974302,84763.0,84762.0,0.035]
[1741524516306,0.38159336,84763.0,84762.0,0.035]
[1741524516906,0.20554894,84763.0,84762.0,0.035]
[1741524517207,0.08755034,84763.0,84761.0,0.00017695]
[1741524517412,0.1540986,84762.0,84761.0,0.00017695]
[1741524517816,0.1912986,84762.0,84761.0,0.00017695]
[1741524518413,0.1912986,84762.0,84761.0,0.11817695]
[1741524519108,0.1912986,84762.0,84761.0,0.07257695]
[1741524519710,0.1912986,84762.0,84761.0,0.19057695]
[1741524520211,0.1979586,84762.0,84761.0,0.19057695]
[1741524520417,0.2346586,84762.0,84761.0,0.07257695]
[1741524525021,0.1979586,84762.0,84761.0,0.20219669]
[1741524525217,0.1179986,84762.0,84761.0,0.20219669]
[1741524525414,0.17604442,84765.0,84761.0,0.08419669]
[1741524525626,0.25600442,84765.0,84764.0,0.1179958]
[1741524525821,0.17604442,84765.0,84764.0,0.1179958]
[1741524526230,0.29403882,84765.0,84764.0,0.1179958]
[1741524526432,0.29403882,84765.0,84764.0,0.1919958]
[1741524527731,0.17604442,84765.0,84764.0,0.1919958]
[1741524528433,0.1179925,84767.0,84766.0,0.117993]
[1741524539731,0.1562925,84767.0,84766.0,0.117993]
[1741524543538,0.0589932,84771.0,84764.0,0.1329972]
[1741524543841,0.0951932,84771.0,84770.0,0.1179874]
[1741524544040,0.0362,84771.0,84770.0,0.1179874]
[1741524544241,0.1541861,84771.0,84770.0,0.1179874]
[1741524544742,0.1541861,84771.0,84770.0,0.1921874]
[1741524548335,0.1179823,84774.0,84773.0,0.1769715]
[1741524548545,0.1179823,84774.0,84773.0,0.2138715]
[1741524549445,0.1179823,84774.0,84773.0,0.095891]
[1741524549756,0.1179958,84764.0,84763.0,0.21159358]
[1741524550043,0.1978758,84764.0,84763.0,0.21159358]
[1741524550937,0.1978758,84764.0,84753.0,0.35231434]
[1741524550938,0.1180097,84754.0,84753.0,0.35231434]
[1741524551140,0.5586897,84754.0,84753.0,0.35231434]
[1741524551835,0.5586897,84754.0,84751.0,0.21212749]
[1741524552036,0.4198068,84752.0,84751.0,0.21212749]
[1741524552543,0.5378193,84752.0,84751.0,0.21212749]
[1741524554353,0.6103193,84752.0,84751.0,0.21212749]
[1741524555447,0.1180153,84750.0,84745.0,0.00017695]
[1741524556047,0.1551153,84750.0,84745.0,0.00017695]
[1741524556248,0.1180209,84746.0,84745.0,0.00017695]
[1741524556448,0.1979009,84746.0,84745.0,0.00017695]
[1741524557048,0.2334009,84746.0,84745.0,0.00017695]
[1741524559463,0.2334009,84746.0,84745.0,0.11819925]
[1741524560654,0.2334009,84746.0,84745.0,0.12994305]
[1741524561159,0.2334009,84746.0,84745.0,0.16784305]
[1741524561848,0.2334009,84746.0,84745.0,0.03807695]
[1741524562463,0.2334009,84746.0,84745.0,0.15609925]
[1741524562861,0.2334009,84746.0,84745.0,0.03807695]
[1741524563056,0.2334009,84746.0,84745.0,0.15609925]
[1741524563758,0.1535209,84746.0,84745.0,0.15609925]
[1741524563957,0.2334009,84746.0,84745.0,0.15609925]
[1741524564859,0.2334009,84746.0,84745.0,0.03807695]
[1741524566564,0.2334009,84746.0,84745.0,0.07357695]
[1741524568161,0.2334009,84746.0,84745.0,0.03807695]
[1741524575059,0.62618,84746.0,84718.0,0.00177051]
[1741524575264,0.1180585,84719.0,84718.0,0.00177051]
[1741524575566,0.1978985,84719.0,84718.0,0.00177051]
[1741524576365,0.2337985,84719.0,84718.0,0.00177051]
[1741524577664,0.24552161,84719.0,84718.0,0.00177051]
[1741524577871,0.1180696,84711.0,84710.0,0.00017706]
[1741524578168,0.5587096,84711.0,84710.0,0.00017706]
[1741524578763,0.5587096,84711.0,84710.0,0.07567706]
[1741524579171,0.4788696,84711.0,84710.0,0.07567706]
[1741524579365,0.5587096,84711.0,84710.0,0.07567706]
[1741524581860,0.5587096,84711.0,84710.0,0.19374806]
[1741524582061,0.1979096,84711.0,84710.0,0.19374806]
[1741524583061,0.1979096,84711.0,84710.0,0.07567706]
[1741524583570,0.1979096,84711.0,84710.0,0.19374806]
[1741524584464,0.1979096,84711.0,84710.0,0.07567706]
[1741524585159,0.2362096,84711.0,84710.0,0.07567706]
[1741524585357,0.51554,84711.0,84702.0,0.1180768]
[1741524585667,0.51554,84711.0,84690.0,0.3608]
[1741524585668,0.1180822,84702.0,84701.0,0.0356]
[1741524585864,0.1979222,84702.0,84701.0,0.0356]
[1741524586465,0.24794385,84702.0,84701.0,0.0356]
[1741524587666,0.28624385,84702.0,84701.0,0.0356]
[1741524588870,0.1180891,84697.0,84696.0,0.0725]
[1741524589068,0.1979291,84697.0,84696.0,0.0725]
[1741524589666,0.1979291,84697.0,84693.0,0.00017706]
[1741524589667,0.2726291,84697.0,84693.0,0.00017706]
[1741524589873,0.4788933,84694.0,84693.0,6e-08]
[1741524593274,0.5587333,84694.0,84693.0,6e-08]
[1741524593776,0.5587333,84694.0,84693.0,0.23039476]
[1741524594874,0.5587333,84694.0,84693.0,0.11230006]
[1741524595670,0.5587333,84694.0,84693.0,0.23039476]
[1741524596678,0.5587333,84694.0,84693.0,0.11230006]
[1741524597369,0.6307333,84694.0,84693.0,0.11230006]
[1741524597872,0.5587333,84694.0,84693.0,0.11230006]
[1741524598474,0.6307333,84694.0,84693.0,0.11230006]
[1741524599076,0.5587333,84694.0,84693.0,0.23039476]
[1741524599270,0.44064,84694.0,84693.0,0.23039476]
[1741524599885,0.5587333,84694.0,84693.0,0.23039476]
[1741524601078,0.5587333,84694.0,84693.0,0.11230006]
[1741524601275,0.5587333,84694.0,84693.0,0.23039476]
[1741524603771,0.5587333,84694.0,84693.0,0.11230006]
[1741524604976,0.9910333,84694.0,84693.0,6e-08]
[1741524605479,1.0026891,84694.0,84693.0,6e-08]
[1741524608077,1.1526891,84694.0,84678.0,0.0379]
[1741524608272,1.1526891,84694.0,84670.0,0.0748]
[1741524608273,0.1181254,84671.0,84670.0,0.0748]
[1741524608476,0.5587654,84671.0,84670.0,0.0748]
[1741524609186,0.6291654,84671.0,84670.0,0.0748]
[1741524609594,0.64067008,84671.0,84670.0,0.0748]
[1741524610083,0.1181352,84664.0,84663.0,0.0374]
[1741524610283,0.4789352,84664.0,84663.0,0.0374]
[1741524610483,0.5587752,84664.0,84663.0,0.0374]
[1741524610678,0.5587752,84664.0,84663.0,0.1555366]
[1741524610879,0.5587752,84664.0,84663.0,0.1924366]
[1741524611081,0.5587752,84664.0,84663.0,0.0743]
[1741524611278,0.07984,84664.0,84663.0,0.1924366]
[1741524612380,0.3608,84675.0,84663.0,0.1924366]
[1741524612580,0.1181352,84664.0,84663.0,0.1924334]
[1741524612780,0.1979752,84664.0,84663.0,0.1924334]
[1741524613291,0.1979752,84664.0,84663.0,0.0743]
[1741524613988,0.2353752,84664.0,84663.0,0.0743]
[1741524614689,0.1979752,84664.0,84663.0,0.1924366]
[1741524614886,0.1979752,84664.0,84663.0,0.0743]
[1741524616684,0.1979752,84664.0,84663.0,0.0374]
[1741524616887,0.1181366,84663.0,84662.0,0.00017706]
[1741524617082,0.1897366,84663.0,84662.0,0.00017706]
[1741524619693,0.1181366,84663.0,84662.0,0.00017706]
[1741524620988,0.1181366,84663.0,84662.0,0.11831506]
[1741524621485,0.1181366,84663.0,84662.0,0.00017706]
[1741524621688,0.1181366,84663.0,84662.0,0.07377706]
[1741524623792,0.3608,84672.0,84662.0,0.07377706]
[1741524623793,0.14090298,84676.0,84670.0,0.1181268]
[1741524623992,0.118124,84673.0,84672.0,0.1181218]
[1741524624196,0.118124,84673.0,84672.0,0.08403081]
[1741524625083,0.0798,84674.0,84673.0,0.1771833]
[1741524625285,0.14090298,84676.0,84673.0,0.1771833]
[1741524625286,0.14090298,84676.0,84675.0,0.1181198]
[1741524625486,0.08320298,84677.0,84676.0,0.1181184]
[1741524625684,0.08320298,84677.0,84676.0,0.1890184]
[1741524625886,0.02550298,84677.0,84676.0,0.3390184]
[1741524626082,0.14994899,84685.0,84684.0,0.1181073]
[1741524626294,0.21075483,84693.0,84692.0,0.1180961]
[1741524626490,0.32884953,84693.0,84692.0,0.1978961]
[1741524626799,0.21075483,84693.0,84692.0,0.5586961]
[1741524627787,0.00017716,84701.0,84692.0,0.99648]
[1741524628093,0.00017716,84701.0,84698.0,0.4788877]
[1741524628286,0.00017716,84701.0,84698.0,0.5586877]
[1741524628493,0.39702873,84699.0,84698.0,0.5586877]
[1741524628796,0.37502873,84699.0,84698.0,0.5586877]
[1741524628996,0.1180864,84699.0,84698.0,0.5586877]
[1741524629197,0.1180864,84699.0,84698.0,0.5945877]
[1741524629390,0.1180864,84699.0,84698.0,0.6323877]
[1741524630801,0.05921936,84701.0,84698.0,0.6323877]
[1741524630802,0.00017716,84701.0,84700.0,0.118085]
[1741524631795,0.11826076,84701.0,84700.0,0.118085]
[1741524632196,0.1180864,84699.0,84698.0,0.08297436]
[1741524632397,0.1180864,84699.0,84698.0,0.0737]
[1741524632789,0.1940864,84699.0,84698.0,0.0737]
[1741524634498,0.1180947,84693.0,84690.0,0.3608]
[1741524634801,0.1181059,84685.0,84684.0,0.00017716]
[1741524635000,0.1979059,84685.0,84684.0,0.00017716]
[1741524635201,0.5587059,84685.0,84684.0,0.00017716]
[1741524635397,0.57021793,84685.0,84684.0,0.00017716]
[1741524635705,0.5587059,84685.0,84684.0,0.00017716]
[1741524636403,0.5517059,84685.0,84684.0,0.00017716]
[1741524638499,0.1181268,84670.0,84669.0,0.0017715]
[1741524638698,0.1978868,84670.0,84669.0,0.0017715]
[1741524641010,0.1978868,84670.0,84669.0,0.1198997]
[1741524641513,0.1978868,84670.0,84669.0,0.0017715]
[1741524642005,0.1978868,84670.0,84669.0,0.0366715]
[1741524642709,0.1978868,84670.0,84669.0,0.0017715]
[1741524644106,0.1978868,84670.0,84659.0,0.18904]
[1741524644107,0.07976,84670.0,84659.0,0.18904]
[1741524644303,0.118138,84662.0,84655.0,0.0716]
[1741524644607,0.197938,84662.0,84655.0,0.0716]
[1741524645409,0.271438,84662.0,84647.0,0.3608]
[1741524645610,0.308338,84662.0,84647.0,0.397]
[1741524645806,0.271438,84662.0,84659.0,0.1181415]
[1741524646115,0.271438,84662.0,84660.0,0.0709]
[1741524646507,0.271438,84662.0,84661.0,0.11831656]
[1741524646708,0.271438,84662.0,84661.0,0.18921656]
[1741524647307,0.271438,84662.0,84661.0,0.07107716]
[1741524648314,0.271438,84662.0,84661.0,0.00017716]
[1741524651813,0.25843799,84662.0,84661.0,0.00017716]
[1741524653624,0.25843799,84662.0,84661.0,6e-08]
[1741524653625,0.61923799,84662.0,84661.0,6e-08]
[1741524655023,0.76923799,84662.0,84661.0,6e-08]
[1741524657825,0.76923799,84662.0,84629.0,0.3608]
[1741524658131,0.1181826,84630.0,84629.0,0.3608]
[1741524658321,0.1979826,84630.0,84629.0,0.3608]
[1741524659226,0.2710826,84630.0,84629.0,0.3608]
[1741524659733,0.2640826,84630.0,84629.0,0.3608]
[1741524660125,0.1529,84630.0,84629.0,0.3608]
[1741524660431,0.1979826,84630.0,84629.0,0.478984]
[1741524660833,0.1979826,84630.0,84629.0,0.551884]
[1741524661226,0.0798,84630.0,84629.0,0.551884]
[1741524661421,0.0590868,84637.0,84634.0,0.1772622]
[1741524661728,0.0590868,84637.0,84636.0,0.1181743]
[1741524661729,0.1388868,84637.0,84636.0,0.1181743]
[1741524662129,0.1388868,84637.0,84636.0,0.0731]
[1741524662325,0.0590868,84637.0,84636.0,0.0731]
[1741524662525,0.1388868,84637.0,84636.0,0.0731]
[1741524663136,0.2102868,84637.0,84636.0,0.0731]
[1741524663429,0.1181826,84630.0,84629.0,0.3608]
[1741524663625,0.1979826,84630.0,84629.0,0.3608]
[1741524663825,0.0798,84630.0,84628.0,0.036]
[1741524664134,0.154084,84629.0,84628.0,0.036]
[1741524664731,0.190984,84629.0,84628.0,0.0711]
[1741524664927,0.118184,84629.0,84628.0,0.1892854]
[1741524665234,0.3608,84642.0,84637.0,0.1181729]
[1741524665428,0.07997716,84638.0,84637.0,0.1181729]
[1741524665626,0.19814866,84638.0,84637.0,0.1181729]
[1741524666138,0.19814866,84638.0,84637.0,0.1877729]
[1741524666325,0.19814866,84638.0,84637.0,0.0696]
[1741524667425,0.17614866,84638.0,84637.0,0.0696]
[1741524671848,0.1979715,84638.0,84637.0,0.1877729]
[1741524672133,0.00017716,84646.0,84645.0,0.1181617]
[1741524672435,0.00017716,84646.0,84645.0,0.3608]
[1741524672436,0.11833746,84646.0,84645.0,0.3608]
[1741524672623,0.11833746,84646.0,84645.0,0.4789617]
[1741524672936,0.1181631,84644.0,84643.0,0.2385288]
[1741524673137,0.1181631,84644.0,84643.0,0.5993288]
[1741524674141,0.1181631,84644.0,84643.0,0.2385288]
[1741524674431,0.1181631,84644.0,84643.0,0.1203645]
[1741524674833,0.1181631,84644.0,84643.0,0.238529]
[1741524675035,0.0961631,84644.0,84643.0,0.238529]
[1741524675730,0.1772136,84663.0,84643.0,0.5609245]
[1741524676030,0.1772438,84648.0,84647.0,0.1181554]
[1741524676830,0.0590807,84648.0,84647.0,0.1181554]
[1741524677032,0.2363077,84654.0,84653.0,0.1181435]
[1741524677435,0.2363077,84654.0,84653.0,0.4789435]
[1741524677633,0.1181526,84654.0,84653.0,0.5529435]
[1741524679640,0.1181526,84654.0,84653.0,0.4348]
[1741524680332,0.00017716,84656.0,84653.0,0.4348]
[1741524680333,0.00017716,84656.0,84655.0,0.1181477]
[1741524681033,0.11832346,84656.0,84655.0,0.1181477]
[1741524681442,0.1181491,84654.0,84653.0,0.0746]
[1741524681637,0.1181491,84654.0,84653.0,0.1921505]
[1741524682045,0.05925096,84656.0,84653.0,0.074]
[1741524682344,0.05925096,84656.0,84655.0,0.1181477]
[1741524682345,0.00017716,84656.0,84655.0,0.1181477]
[1741524682642,0.12376505,84656.0,84655.0,0.1181477]
[1741524684243,0.16016505,84656.0,84655.0,0.1181477]
[1741524684637,0.1181491,84654.0,84653.0,0.074]
[1741524685045,0.1181491,84654.0,84653.0,0.1921505]
[1741524685245,0.12359069,84654.0,84653.0,0.1921505]
[1741524686541,0.00544159,84654.0,84653.0,0.1921505]
[1741524686939,0.00544159,84654.0,84653.0,0.5529505]
[1741524687136,0.1181491,84654.0,84653.0,0.074]
[1741524687346,0.1181491,84654.0,84653.0,0.1921505]
[1741524687542,0.1927491,84654.0,84653.0,0.1921505]
[1741524687955,0.19819069,84654.0,84653.0,0.1921505]
[1741524688451,0.19819069,84654.0,84653.0,0.074]
[1741524688652,0.08004159,84654.0,84651.0,0.3608]
[1741524688852,0.1181519,84652.0,84651.0,0.3608]
[1741524689048,0.1181631,84644.0,84643.0,0.21148458]
[1741524689754,0.2334631,84644.0,84643.0,0.21148458]
[1741524689953,0.60585505,84644.0,84643.0,0.21148458]
[1741524690250,0.5942631,84644.0,84643.0,0.21148458]
[1741524690847,0.0766,84644.0,84643.0,0.32964908]
[1741524691158,0.07976,84653.0,84652.0,0.1181519]
[1741524691449,0.1979112,84653.0,84652.0,0.1181519]
[1741524692853,0.2485112,84653.0,84652.0,0.1894519]
[1741524693053,0.2485112,84653.0,84652.0,0.20106627]
[1741524695159,0.2485112,84653.0,84652.0,0.16476627]
[1741524695457,0.2485112,84653.0,84652.0,0.12976627]
[1741524697664,0.2485112,84653.0,84652.0,0.01161437]
[1741524697964,0.1181519,84652.0,84651.0,0.4795525]
[1741524698154,0.1552519,84652.0,84651.0,0.4789525]
[1741524698352,0.1181659,84642.0,84641.0,0.57288458]
[1741524698551,0.1181659,84642.0,84641.0,0.57228458]
[1741524698956,0.1181659,84642.0,84641.0,0.5840618]
[1741524699364,0.1181659,84642.0,84641.0,0.3414291]
[1741524699859,0.1181659,84642.0,84641.0,0.2232618]
[1741524700065,0.1979259,84642.0,84641.0,0.21148458]
[1741524700558,0.1759259,84642.0,84641.0,0.21148458]
[1741524701061,0.1759259,84642.0,84639.0,0.21166174]
[1741524701062,0.1181687,84640.0,84639.0,0.21166174]
[1741524701559,0.1181756,84635.0,84634.0,0.28248473]
[1741524701875,0.5587356,84635.0,84634.0,0.28248473]
[1741524702253,0.5587356,84635.0,84634.0,0.22701073]
[1741524702454,0.0590905,84632.0,84628.0,0.23226346]
[1741524702769,0.118184,84629.0,84628.0,0.05026536]
[1741524702968,0.197944,84629.0,84628.0,0.05026536]
[1741524703163,0.20336195,84629.0,84628.0,0.05026536]
[1741524705361,0.20336195,84629.0,84627.0,0.0369]
[1741524705362,0.1181854,84628.0,84627.0,0.0369]
[1741524705660,0.2260854,84628.0,84627.0,0.0369]
[1741524706066,0.2260854,84628.0,84627.0,0.1550868]
[1741524706462,0.3058454,84628.0,84627.0,0.1550868]
[1741524706659,0.3058454,84628.0,84627.0,0.0369]
[1741524707066,0.1181868,84627.0,84626.0,0.00017716]
[1741524707367,0.0590999,84618.0,84606.0,0.18912]
[1741524707564,0.0590999,84618.0,84610.0,0.1182068]
[1741524707565,0.1773197,84611.0,84610.0,0.1182068]
[1741524707760,0.316186,84611.0,84610.0,0.1182068]
[1741524707960,0.07976,84611.0,84610.0,0.13012692]
[1741524708173,0.3608,84617.0,84616.0,0.1182022]
[1741524708370,0.41856,84617.0,84614.0,0.0591018]
[1741524708565,0.1182036,84615.0,84614.0,0.0591018]
[1741524708870,0.177313,84613.0,84612.0,0.1182072]
[1741524709269,0.212313,84613.0,84612.0,0.1182072]
[1741524709467,0.0941038,84613.0,84610.0,0.13012692]
[1741524709771,0.1182148,84607.0,84606.0,0.18912]
[1741524710070,0.1182148,84607.0,84604.0,0.4790185]
[1741524710374,0.1182176,84605.0,84604.0,0.4790185]
[1741524710870,0.1182176,84605.0,84604.0,0.49102757]
[1741524711070,0.1182203,84603.0,84602.0,0.00011893]
[1741524712172,0.15246,84605.0,84585.0,0.3608]
[1741524712469,0.1182497,84582.0,84576.0,0.48997738]
[1741524712859,0.1182497,84582.0,84577.0,0.1182561]
[1741524713065,0.1773821,84580.0,84579.0,0.1182528]
[1741524713560,0.2516821,84580.0,84579.0,0.1182528]
[1741524714978,0.1182581,84577.0,84576.0,0.1182578]
[1741524715567,0.1182581,84576.0,84575.0,0.18916]
[1741524715973,0.1904581,84576.0,84575.0,0.3074195]
[1741524716167,0.1549581,84576.0,84575.0,0.3074195]
[1741524716363,0.1549581,84576.0,84566.0,0.07976]
[1741524716364,0.1182721,84566.0,84559.0,0.406]
[1741524716575,0.1182721,84566.0,84565.0,0.89835414]
[1741524716777,0.1182721,84566.0,84565.0,0.78008064]
[1741524717671,0.1182721,84566.0,84565.0,0.91009763]
[1741524718072,0.1182721,84566.0,84565.0,0.78008064]
[1741524718380,0.1980321,84566.0,84565.0,0.41928064]
[1741524718769,0.2341321,84566.0,84562.0,0.00068]
[1741524719074,0.1182791,84561.0,84560.0,0.00177383]
[1741524719279,0.1980391,84561.0,84560.0,0.00177383]
[1741524719975,0.2340391,84561.0,84560.0,0.00177383]
[1741524720377,0.07976,84561.0,84560.0,0.1182805]
[1741524720579,0.07993738,84569.0,84567.0,0.1182707]
[1741524720777,0.00017738,84569.0,84568.0,0.4790693]
[1741524720973,0.00017738,84569.0,84568.0,0.5157693]
[1741524721181,0.0591315,84573.0,84572.0,0.17739]
[1741524721379,0.1773986,84573.0,84572.0,0.17739]
[1741524721683,0.0591315,84573.0,84572.0,0.17739]
[1741524723775,0.0591315,84573.0,84572.0,0.0591305]
[1741524725074,0.1182651,84571.0,84570.0,0.0978332]
[1741524725386,0.00017738,84581.0,84580.0,0.1182525]
[1741524725780,0.11842848,84581.0,84580.0,0.1182525]
[1741524725981,0.1182525,84580.0,84579.0,0.0351]
[1741524726181,0.1543525,84580.0,84579.0,0.0351]
[1741524726581,0.1543525,84580.0,84579.0,0.1533539]
[1741524727583,0.00017738,84581.0,84579.0,0.1533539]
[1741524727584,0.00017738,84581.0,84580.0,0.1182525]
[1741524727887,0.059116,84595.0,84594.0,0.1182301]
[1741524728085,0.059116,84595.0,84594.0,0.1924301]
[1741524728086,0.1773475,84595.0,84594.0,0.1924301]
[1741524728783,0.1773475,84595.0,84594.0,0.0742]
[1741524728990,0.1773475,84595.0,84594.0,0.1924329]
[1741524729185,0.059114,84598.0,84595.0,0.0591151]
[1741524729390,0.118224,84601.0,84600.0,0.1182217]
[1741524730079,0.118224,84601.0,84598.0,0.1182245]
[1741524730080,0.156324,84601.0,84598.0,0.1182245]
[1741524730284,0.1182287,84597.0,84596.0,0.07976]
[1741524730486,0.1182315,84595.0,84594.0,0.16967009]
[1741524731284,0.1182315,84595.0,84594.0,0.001]
[1741524731482,0.2699915,84595.0,84594.0,0.1192329]
[1741524731681,0.1182315,84595.0,84594.0,0.1192329]
[1741524732291,0.1242315,84595.0,84594.0,0.1192329]
[1741524732487,0.006,84595.0,84594.0,0.1192329]
[1741524733281,0.1182266,84599.0,84593.0,0.3608]
[1741524733489,0.004,84595.0,84594.0,0.4147929]
[1741524733686,0.00017738,84603.0,84594.0,0.29656]
[1741524733892,0.09939768,84603.0,84602.0,0.4790217]
[1741524734086,0.09939768,84603.0,84602.0,0.5587817]
[1741524734392,0.09939768,84603.0,84602.0,0.44056]
[1741524734589,0.09939768,84603.0,84602.0,0.4790217]
[1741524734787,0.09939768,84603.0,84602.0,0.3608]
[1741524734993,0.1182329,84594.0,84593.0,0.3608]
[1741524735187,0.1979929,84594.0,84593.0,0.3608]
[1741524735798,0.1182427,84587.0,84579.0,0.1182532]
[1741524735988,0.1182427,84587.0,84578.0,0.0965276]
[1741524735989,0.1980027,84587.0,84581.0,0.1182503]
[1741524736190,0.1980027,84587.0,84578.0,0.0374]
[1741524736191,0.1980027,84587.0,84580.0,0.0118926]
[1741524736390,0.1980027,84587.0,84585.0,0.1182454]
[1741524736689,0.2735027,84587.0,84586.0,0.11842148]
[1741524736887,0.2735027,84587.0,84586.0,0.00017738]
[1741524738593,0.2735027,84587.0,84586.0,0.11842148]
[1741524738792,0.2735027,84587.0,84586.0,0.00017738]
[1741524738989,0.2735027,84587.0,84586.0,0.11842148]
[1741524739696,0.50220686,84611.0,84600.0,0.1773308]
[1741524739697,0.1773416,84601.0,84600.0,0.1773308]
[1741524739999,0.1773416,84601.0,84598.0,0.1182263]
[1741524740000,0.1182273,84599.0,84598.0,0.1182263]
[1741524740292,0.1182343,84594.0,84593.0,0.1182337]
[1741524741194,0.0377,84594.0,84586.0,0.00017738]
[1741524741400,0.0377,84594.0,84586.0,0.11842148]
[1741524741401,0.1182427,84587.0,84586.0,0.11842148]
[1741524741597,0.0962427,84587.0,84586.0,0.15362148]
[1741524742293,0.1339427,84587.0,84586.0,0.15362148]
[1741524742495,0.1705427,84587.0,84586.0,0.15362148]
[1741524742895,0.0743,84587.0,84586.0,0.15362148]
[1741524743096,0.61802989,84736.0,84586.0,0.15362148]
[1741524743097,0.3503204,84660.0,84586.0,0.03537738]
[1741524743291,0.0366,84600.0,84594.0,0.1182329]
[1741524743503,0.0591157,84597.0,84594.0,0.1182259]
[1741524743800,0.1773458,84597.0,84596.0,0.1182301]
[1741524744203,0.1773458,84597.0,84596.0,0.0352]
[1741524744403,0.2145458,84597.0,84596.0,0.0352]
[1741524746397,0.2145458,84597.0,84596.0,0.1534301]
[1741524746709,0.2145458,84597.0,84596.0,0.0736]
[1741524746922,0.2525458,84597.0,84596.0,0.0736]
[1741524747315,0.2585458,84597.0,84596.0,0.1928301]
[1741524748017,0.007,84597.0,84596.0,0.2725901]
[1741524749314,0.1032233,84601.0,84596.0,0.15436]
[1741524749522,0.1032233,84601.0,84600.0,0.4790245]
[1741524752121,0.00960054,84631.0,84600.0,0.4790245]
[1741524752319,0.0377,84617.0,84610.0,0.4790106]
[1741524752517,0.1545015,84617.0,84610.0,0.4790106]
[1741524752718,0.0363,84617.0,84610.0,0.5911106]
[1741524752914,0.14122948,84618.0,84610.0,0.5911106]
[1741524753127,0.14122948,84618.0,84610.0,0.7803506]
[1741524753923,0.25942938,84618.0,84610.0,0.7803506]
[1741524754110,0.14122948,84618.0,84610.0,0.7803506]
[1741524754712,0.14122948,84618.0,84610.0,0.8600706]
[1741524755215,0.1182032,84616.0,84610.0,0.8600706]
[1741524755408,0.0590999,84618.0,84610.0,0.8600706]